bitfinex/quotes_SOLUSD_20250811
["timestamp","ask_amount","ask_price","bid_price","bid_amount"]
[1754924559887,0.69,178.67,178.64,6.08539894]
[1754924560080,0.69,178.67,178.64,0.1]
[1754924560385,140.69,178.66,178.64,0.1]
[1754924561069,0.69,178.65,178.64,0.1]
[1754924561268,46.51539894,178.65,178.64,0.1]
[1754924561472,40.53,178.65,178.64,0.1]
[1754924561669,39.84,178.65,178.64,0.1]
[1754924562486,40.53,178.65,178.64,0.1]
[1754924563276,39.84,178.65,178.64,0.1]
[1754924564268,40.53,178.67,178.64,0.1]
[1754924564589,4.86756776,178.66,178.64,0.1]
[1754924564772,0.69,178.66,178.64,0.1]
[1754924564972,0.69,178.65,178.64,0.1]
[1754924568115,0.69,178.7,178.64,6.08539894]
[1754924568282,4.17896334,178.69,178.66,5.98539894]
[1754924568487,46.51539894,178.68,178.64,0.1]
[1754924568795,4.17977737,178.67,178.64,11.68318803]
[1754924569094,0.69,178.67,178.64,11.68318803]
[1754924569289,0.69,178.66,178.64,0.1]
[1754924569674,4.45308735,178.66,178.64,6.08539894]
[1754924569871,3.76308735,178.66,178.64,6.08539894]
[1754924570090,140.0,178.65,178.64,6.08539894]
[1754924570885,140.0,178.65,178.64,0.1]
[1754924571081,4.45322459,178.65,178.64,0.1]
[1754924571287,0.69,178.65,178.64,0.1]
[1754924571487,4.45322459,178.65,178.64,0.1]
[1754924571690,3.76322459,178.65,178.64,6.08539894]
[1754924572396,3.76322459,178.65,178.64,6.08539894]
[1754924572605,3.76322459,178.65,178.64,11.68324936]
[1754924572825,3.76322459,178.68,178.64,11.75324936]
[1754924572996,3.76322459,178.7,178.67,5.98539894]
[1754924573183,0.69,178.7,178.69,5.98539894]
[1754924573383,8.63463301,178.7,178.69,5.98539894]
[1754924573607,4.87120363,178.7,178.69,5.98539894]
[1754924573905,8.6345077,178.7,178.69,5.98539894]
[1754924574610,7.9445077,178.7,178.69,5.98539894]
[1754924575408,3.76342128,178.7,178.69,11.581683]
[1754924575989,3.76342128,178.7,178.69,5.98539894]
[1754924577117,3.79342128,178.7,178.69,5.98539894]
[1754924577590,4.48342128,178.7,178.65,5.59753708]
[1754924577792,0.03,178.7,178.69,5.98539894]
[1754924577999,3.79649243,178.7,178.69,5.98539894]
[1754924578394,4.49649243,178.7,178.65,5.59753708]
[1754924578600,8.65056507,178.69,178.68,5.98539894]
[1754924579705,8.65056507,178.69,178.65,5.59753708]
[1754924579899,4.46649243,178.68,178.67,5.98539894]
[1754924580095,140.0,178.67,178.65,5.59753708]
[1754924580295,140.0,178.67,178.66,5.98539894]
[1754924580524,143.76363318,178.67,178.66,5.98539894]
[1754924581004,144.46363318,178.67,178.64,0.1]
[1754924581215,4.46385048,178.66,178.65,5.98539894]
[1754924581655,0.7,178.66,178.65,5.98539894]
[1754924581818,140.0,178.67,178.65,5.98539894]
[1754924582018,140.0,178.67,178.64,5.6978257]
[1754924582218,140.0,178.67,178.66,5.98539894]
[1754924582469,144.46429117,178.67,178.66,5.98539894]
[1754924582640,143.76429117,178.67,178.66,5.98539894]
[1754924583337,143.76429117,178.67,178.64,5.6978257]
[1754924583535,140.0,178.67,178.66,5.98539894]
[1754924583717,143.76491879,178.67,178.66,5.98539894]
[1754924584041,144.46491879,178.67,178.64,6.08539894]
[1754924584224,3.76491879,178.66,178.64,6.08539894]
[1754924584423,0.7,178.65,178.64,6.08539894]
[1754924584936,0.7,178.65,178.64,0.1]
[1754924585135,0.7,178.65,178.64,6.08539894]
[1754924585345,4.46457775,178.65,178.64,6.08539894]
[1754924585527,0.7,178.65,178.64,6.08539894]
[1754924585850,4.46457775,178.65,178.64,6.08539894]
[1754924586139,0.7,178.65,178.64,0.1]
[1754924586361,4.46457775,178.65,178.64,0.1]
[1754924586564,0.7,178.65,178.64,0.1]
[1754924586768,4.46457775,178.65,178.64,0.1]
[1754924587445,0.7,178.65,178.64,0.1]
[1754924587646,4.46457775,178.65,178.64,0.1]
[1754924587968,0.7,178.65,178.64,0.1]
[1754924588149,4.46457775,178.65,178.64,0.1]
[1754924589758,10.06211483,178.65,178.64,0.1]
[1754924589987,49.88211483,178.65,178.64,0.1]
[1754924591148,60.0448118,178.65,178.64,0.1]
[1754924591553,75.15102737,178.65,178.64,0.1]
[1754924593162,77.23913392,178.65,178.64,0.1]
[1754924593663,31.43373498,178.65,178.64,0.1]
[1754924593883,65.6761979,178.65,178.64,0.1]
[1754924594109,63.58809135,178.65,178.64,0.1]
[1754924594384,69.57349029,178.65,178.64,0.1]
[1754924594562,77.25746068,178.65,178.64,0.1]
[1754924594887,65.66812082,178.65,178.64,0.1]
[1754924595062,63.58168751,178.65,178.64,0.1]
[1754924595266,71.65230329,178.65,178.64,0.1]
[1754924595876,77.24984037,178.65,178.64,0.1]
[1754924596369,75.16462353,178.65,178.64,0.1]
[1754924596665,77.24774187,178.65,178.64,0.1]
[1754924597057,71.26234293,178.65,178.64,0.1]
[1754924597280,75.16462353,178.65,178.64,0.1]
[1754924597891,70.99372934,178.65,178.64,0.1]
[1754924598097,77.24184968,178.65,178.64,0.1]
[1754924598667,75.15870918,178.65,178.64,0.1]
[1754924599162,69.17331024,178.65,178.64,0.1]
[1754924599576,75.15870918,178.65,178.64,0.1]
[1754924599784,7.92955759,178.65,178.64,0.1]
[1754924600087,44.30457775,178.65,178.64,0.1]
[1754924600473,49.90211483,178.65,178.64,0.1]
[1754924600882,54.06742328,178.65,178.64,0.1]
[1754924601772,77.24158776,178.65,178.64,0.1]
[1754924602782,71.25618882,178.65,178.64,0.1]
[1754924602962,75.15903779,178.65,178.64,0.1]
[1754924603166,77.24299529,178.65,178.64,0.1]
[1754924605895,75.15903779,178.65,178.64,0.1]
[1754924607091,80.16045335,178.65,178.62,0.06]
[1754924607294,21.09161451,178.63,178.62,0.06]
[1754924607500,68.84150071,178.63,178.62,0.06]
[1754924607685,75.13966451,178.63,178.62,0.06]
[1754924607873,75.13966451,178.63,178.6,0.06]
[1754924608074,21.09161451,178.61,178.6,0.06]
[1754924608295,64.67619226,178.61,178.6,0.06]
[1754924608501,65.37619226,178.61,178.6,0.06]
[1754924608795,3.76457775,178.61,178.6,0.06]
[1754924608998,39.84,178.61,178.6,0.06]
[1754924609185,43.60457775,178.61,178.6,0.06]
[1754924609696,0.7,178.64,178.6,11.64431633]
[1754924609900,3.74526506,178.68,178.63,5.98539894]
[1754924610086,4.16054234,178.67,178.63,0.13]
[1754924610281,7.9058074,178.67,178.63,5.98539894]
[1754924610586,39.82,178.66,178.63,5.98539894]
[1754924611192,39.82,178.66,178.64,5.98539894]
[1754924611376,45.41727339,178.66,178.61,5.72873802]
[1754924611580,39.82,178.66,178.63,5.98539894]
[1754924611808,39.82,178.66,178.64,5.98539894]
[1754924612180,39.82,178.66,178.65,5.98539894]
[1754924612405,3.74463087,178.66,178.65,5.98539894]
[1754924612710,3.74463087,178.67,178.65,6.11539894]
[1754924612997,3.74463087,178.67,178.6,32.04539894]
[1754924612998,39.82,178.68,178.66,6.11539894]
[1754924613207,39.82,178.68,178.67,5.98539894]
[1754924613386,43.56412795,178.68,178.66,5.98539894]
[1754924613575,3.74406419,178.67,178.64,5.98539894]
[1754924613776,4.44406419,178.67,178.64,5.98539894]
[1754924614001,0.7,178.66,178.6,31.65904467]
[1754924614204,40.52,178.66,178.6,26.06]
[1754924614498,9.72854556,178.65,178.6,0.06]
[1754924614701,5.98539894,178.62,178.6,0.06]
[1754924614994,151.5841896,178.61,178.6,0.06]
[1754924615202,171.132717,178.61,178.6,0.06]
[1754924615412,31.132717,178.61,178.6,0.06]
[1754924615778,35.28964348,178.61,178.6,0.06]
[1754924616105,37.36763752,178.61,178.6,0.06]
[1754924616808,37.36312672,178.61,178.6,0.06]
[1754924617490,51.36010337,178.61,178.51,5.98539894]
[1754924617692,5.98539894,178.55,178.51,5.98539894]
[1754924617885,40.52,178.55,178.49,6.11539894]
[1754924618079,5.98539894,178.54,178.49,6.11539894]
[1754924618279,5.98539894,178.5,178.44,16.951329]
[1754924618585,179.82,178.49,178.45,5.98539894]
[1754924618889,192.10826167,178.49,178.44,6.11539894]
[1754924619084,186.12286273,178.49,178.44,5.98539894]
[1754924619290,5.98539894,178.47,178.36,14.01650672]
[1754924619500,45.80539894,178.47,178.42,5.98539894]
[1754924619683,39.82,178.47,178.43,5.98539894]
[1754924620019,39.82,178.47,178.45,5.98539894]
[1754924620216,15.10621557,178.53,178.46,6.11539894]
[1754924620416,43.54810773,178.52,178.46,0.13]
[1754924620587,39.82,178.52,178.48,5.98539894]
[1754924621000,15.10621557,178.53,178.47,5.6031826]
[1754924621199,39.84,178.52,178.5,5.98539894]
[1754924621410,39.84,178.52,178.48,0.13]
[1754924621725,39.84,178.52,178.5,5.98539894]
[1754924622099,0.7,178.57,178.51,6.11539894]
[1754924622305,39.84,178.56,178.55,5.98539894]
[1754924622479,39.84,178.58,178.55,5.98539894]
[1754924622808,39.84,178.58,178.57,5.98539894]
[1754924623017,69.84,178.58,178.57,5.98539894]
[1754924623188,39.84,178.58,178.57,5.98539894]
[1754924623691,39.84,178.58,178.54,5.60073468]
[1754924623884,39.84,178.58,178.57,5.98539894]
[1754924624081,6.29920156,178.6,178.57,5.98539894]
[1754924624281,0.7,178.59,178.57,9.5838182]
[1754924624516,40.54,178.59,178.56,9.5838182]
[1754924624719,0.7,178.58,178.56,9.5838182]
[1754924624892,0.7,178.58,178.57,9.5838182]
[1754924625422,0.7,178.58,178.52,5.60161326]
[1754924625594,0.7,178.58,178.57,9.5838182]
[1754924625800,39.84,178.59,178.57,9.5838182]
[1754924626008,39.84,178.59,178.58,9.5838182]
[1754924626320,39.84,178.6,178.58,9.5838182]
[1754924626614,39.84,178.63,178.59,9.7138182]
[1754924626811,39.84,178.66,178.62,9.5838182]
[1754924627001,39.84,178.66,178.6,0.13]
[1754924627002,39.84,178.66,178.65,9.5838182]
[1754924627211,43.56626502,178.66,178.61,5.59879066]
[1754924627392,40.54,178.66,178.64,9.5838182]
[1754924627586,4.42650254,178.65,178.63,9.5838182]
[1754924627806,0.7,178.64,178.63,9.5838182]
[1754924628212,0.7,178.64,178.59,5.59936869]
[1754924628399,140.0,178.63,178.59,5.59936869]
[1754924628721,140.0,178.63,178.62,9.5838182]
[1754924630118,140.0,178.63,178.62,15.18229541]
[1754924631442,140.0,178.63,178.62,15.31229541]
[1754924633055,140.0,178.63,178.6,26.0]
[1754924633056,140.0,178.63,178.6,5.59884245]
[1754924633247,140.0,178.63,178.62,9.5838182]
[1754924633617,140.0,178.63,178.59,26.0]
[1754924633814,140.0,178.63,178.62,9.5838182]
[1754924634847,140.7,178.63,178.62,9.5838182]
[1754924635145,140.0,178.63,178.62,9.5838182]
[1754924635523,140.0,178.63,178.62,15.18229541]
[1754924635941,140.0,178.63,178.62,15.31229541]
[1754924636519,140.0,178.63,178.62,5.72847721]
[1754924636740,140.0,178.63,178.62,15.31229541]
[1754924637533,140.0,178.63,178.62,15.18229541]
[1754924638033,140.0,178.63,178.62,41.31229541]
[1754924638943,0.03,178.67,178.65,26.0]
[1754924639144,0.03,178.67,178.66,9.5838182]
[1754924639945,0.03,178.67,178.66,15.18104197]
[1754924640648,0.03,178.67,178.65,5.59751114]
[1754924640818,0.7,178.67,178.66,9.5838182]
[1754924641133,0.03,178.67,178.66,9.5838182]
[1754924641852,0.7,178.67,178.66,9.5838182]
[1754924642530,0.03,178.67,178.66,15.18104197]
[1754924644859,0.7,178.67,178.66,15.18104197]
[1754924645034,0.7,178.67,178.65,31.59745168]
[1754924645228,0.03,178.67,178.66,9.5838182]
[1754924646455,0.7,178.67,178.66,15.18104197]
[1754924646654,0.7,178.67,178.66,9.5838182]
[1754924647451,0.7,178.67,178.66,15.18104197]
[1754924647759,0.03,178.67,178.66,15.18104197]
[1754924653768,0.03,178.67,178.66,9.5838182]
[1754924653964,0.7,178.67,178.66,9.5838182]
[1754924654164,0.7,178.67,178.66,5.98238192]
[1754924654583,0.7,178.67,178.65,71.39743673]
[1754924654865,0.7,178.67,178.66,5.98238192]
[1754924655451,0.03,178.67,178.66,11.57960569]
[1754924656143,1e-08,178.67,178.66,11.70960569]
[1754924656351,1e-08,178.67,178.66,11.57960569]
[1754924657477,0.03,178.7,178.69,5.59628406]
[1754924657790,140.03,178.7,178.69,57.3410479]
[1754924658103,140.03,178.7,178.69,51.35866598]
[1754924658660,140.03,178.7,178.69,57.4710479]
[1754924659067,140.03,178.7,178.69,57.3410479]
[1754924659483,140.03,178.7,178.69,74.1407119]
[1754924660180,140.03,178.7,178.69,74.2707119]
[1754924660578,140.03,178.7,178.69,68.15832998]
[1754924660763,0.03,178.7,178.69,68.15832998]
[1754924660969,0.03,178.7,178.69,51.35866598]
[1754924661353,0.03,178.7,178.69,53.59874698]
[1754924661774,0.03,178.7,178.69,53.72874698]
[1754924661956,0.03,178.7,178.69,53.59874698]
[1754924662161,0.7,178.7,178.69,51.35866598]
[1754924662885,0.7,178.7,178.69,45.76238192]
[1754924663272,0.7,178.7,178.69,39.78]
[1754924663470,0.7,178.7,178.66,5.5971371]
[1754924663471,0.7,178.7,178.66,5.98238192]
[1754924663768,0.7,178.7,178.67,45.76238192]
[1754924663769,140.0,178.69,178.67,45.76238192]
[1754924663970,0.67,178.68,178.67,45.76238192]
[1754924664173,0.67,178.68,178.67,49.35223991]
[1754924665083,0.67,178.68,178.67,54.94915041]
[1754924665888,0.03,178.7,178.67,54.94915041]
[1754924666067,0.03,178.7,178.69,9.57223991]
[1754924666385,0.03,178.7,178.69,49.35223991]
[1754924667162,0.03,178.7,178.69,54.94852397]
[1754924667858,0.03,178.7,178.69,80.94852397]
[1754924669468,0.73,178.7,178.69,26.0]
[1754924670783,0.73,178.7,178.69,35.57223991]
[1754924672607,0.73,178.7,178.69,9.57223991]
[1754924673587,0.73,178.7,178.68,39.78]
[1754924673887,0.73,178.7,178.68,9.57223991]
[1754924674663,0.73,178.7,178.67,39.78]
[1754924674961,0.03,178.7,178.69,9.57223991]
[1754924675185,0.03,178.7,178.69,49.35223991]
[1754924675702,0.03,178.7,178.69,54.94852397]
[1754924675867,0.03,178.7,178.69,55.07852397]
[1754924676184,0.03,178.7,178.69,54.94852397]
[1754924676603,0.03,178.7,178.69,80.94852397]
[1754924676908,0.03,178.7,178.69,55.07852397]
[1754924677518,0.03,178.7,178.69,55.63815237]
[1754924677716,1e-08,178.7,178.69,70.74436794]
[1754924679312,1e-08,178.7,178.69,70.18473954]
[1754924679682,1e-08,178.7,178.69,70.05473954]
[1754924679872,1e-08,178.7,178.69,86.85346254]
[1754924680082,1e-08,178.7,178.69,71.74724697]
[1754924681594,0.70000001,178.7,178.69,16.798723]
[1754924681987,0.70000001,178.7,178.67,39.76]
[1754924682518,6.29600908,178.7,178.67,39.76]
[1754924682811,6.29600908,178.7,178.68,9.57223991]
[1754924682812,0.7,178.69,178.68,9.57223991]
[1754924683019,1e-08,178.7,178.68,9.57223991]
[1754924683180,0.70000001,178.7,178.69,9.57223991]
[1754924683806,0.70000001,178.7,178.68,49.33223991]
[1754924683979,0.7,178.69,178.68,49.33223991]
[1754924684182,0.7,178.69,178.68,51.33814954]
[1754924684778,0.7,178.69,178.67,39.76]
[1754924685207,1e-08,178.7,178.67,39.76]
[1754924685516,0.7,178.68,178.65,6.04155228]
[1754924685822,0.7,178.68,178.65,39.82]
[1754924685977,0.7,178.68,178.65,6.04155228]
[1754924686320,140.0,178.67,178.65,6.04155228]
[1754924686515,0.7,178.66,178.65,6.04155228]
[1754924686883,0.7,178.66,178.65,0.06]
[1754924689597,0.7,178.66,178.65,6.04155228]
[1754924689975,3.74240379,178.69,178.65,6.04155228]
[1754924690178,0.7,178.68,178.65,11.63904359]
[1754924690402,0.7,178.68,178.65,51.39904359]
[1754924690582,0.7,178.67,178.66,5.98155228]
[1754924690792,3.7424038,178.7,178.66,5.98155228]
[1754924691111,0.7,178.69,178.66,5.98155228]
[1754924692320,0.7,178.68,178.66,5.98155228]
[1754924692912,0.7,178.67,178.65,51.39904359]
[1754924693223,0.7,178.66,178.65,0.06]
[1754924694816,12.27877605,178.66,178.65,0.06]
[1754924695017,16.02059344,178.66,178.65,0.06]
[1754924695897,4.44181739,178.66,178.65,0.06]
[1754924696606,12.27877605,178.66,178.65,0.06]
[1754924696805,16.02059344,178.66,178.65,0.06]
[1754924697298,4.44181739,178.66,178.65,0.06]
[1754924697503,0.7,178.66,178.65,0.06]
[1754924698098,12.27877605,178.66,178.65,0.06]
[1754924698701,0.7,178.66,178.65,0.06]
[1754924699617,10.03764128,178.66,178.65,0.06]
[1754924700103,16.01919356,178.66,178.65,0.06]
[1754924700525,35.28093703,178.66,178.65,0.06]
[1754924702527,25.14385685,178.66,178.65,0.06]
[1754924702721,31.12540913,178.66,178.65,0.06]
[1754924703804,35.27551003,178.66,178.65,0.06]
[1754924704615,25.14385685,178.66,178.65,0.06]
[1754924704810,31.12540913,178.66,178.65,0.06]
[1754924705321,35.27629733,178.66,178.65,0.06]
[1754924705625,75.05629733,178.66,178.65,0.06]
[1754924710524,25.14385685,178.66,178.65,0.06]
[1754924710917,3.74041751,178.66,178.65,6.04155228]
[1754924711129,43.52041751,178.67,178.65,6.04155228]
[1754924711436,0.71000001,178.7,178.66,5.98155228]
[1754924711625,1e-08,178.7,178.69,5.98155228]
[1754924712129,1e-08,178.7,178.65,0.06]
[1754924712319,0.71,178.69,178.66,5.98155228]
[1754924712524,5.59648626,178.69,178.66,5.98155228]
[1754924712705,0.71,178.68,178.65,0.06]
[1754924713106,0.71,178.68,178.66,5.98155228]
[1754924713531,0.71,178.68,178.65,26.06]
[1754924713712,0.71,178.67,178.66,5.98155228]
[1754924713907,45.37603924,178.7,178.66,5.98155228]
[1754924714137,45.37603924,178.7,178.67,5.98155228]
[1754924714434,45.37603924,178.7,178.68,5.98155228]
[1754924714633,0.71,178.69,178.67,5.98155228]
[1754924715730,0.71,178.68,178.65,0.06]
[1754924715916,5.98155228,178.66,178.65,0.06]
[1754924716227,10.42544806,178.66,178.65,0.06]
[1754924716406,16.02267183,178.66,178.65,0.06]
[1754924717023,10.04111955,178.66,178.65,0.06]
[1754924717217,16.02267183,178.66,178.65,0.06]
[1754924718321,19.62057419,178.66,178.65,0.06]
[1754924718637,34.72678976,178.66,178.65,0.06]
[1754924718814,38.87485591,178.66,178.65,0.06]
[1754924719306,34.72678976,178.66,178.65,0.06]
[1754924719523,30.99289398,178.66,178.65,0.06]
[1754924719722,34.72597423,178.66,178.65,0.06]
[1754924719916,38.87307326,178.66,178.65,0.06]
[1754924720721,29.29361862,178.66,178.65,0.06]
[1754924720927,78.63307326,178.66,178.65,0.06]
[1754924721232,78.63453832,178.66,178.65,0.06]
[1754924721848,78.63302369,178.66,178.65,0.06]
[1754924724046,15.10621557,178.64,178.63,0.06]
[1754924724244,72.33012457,178.64,178.63,0.06]
[1754924724439,73.04012457,178.64,178.63,0.06]
[1754924724636,73.04012457,178.64,178.63,1e-08]
[1754924724944,194.44387421,178.63,178.61,1e-08]
[1754924725125,15.10621557,178.61,178.56,0.06]
[1754924725325,218.03012457,178.6,178.56,0.06]
[1754924725522,218.74012457,178.6,178.56,0.06]
[1754924725843,224.35922871,178.6,178.56,0.06]
[1754924727858,223.64922871,178.6,178.56,0.06]
[1754924728041,214.06977407,178.6,178.56,0.06]
[1754924728240,209.91839996,178.6,178.56,0.06]
[1754924728438,209.91839996,178.6,178.56,9.63945464]
[1754924728868,3.73308025,178.6,178.59,9.63945464]
[1754924729079,3.73532227,178.62,178.59,9.76945464]
[1754924729287,3.73532227,178.62,178.61,9.57945464]
[1754924729645,3.73532227,178.62,178.6,9.57945464]
[1754924730589,39.78,178.63,178.61,9.70945464]
[1754924730769,39.78,178.63,178.62,9.57945464]
[1754924731278,43.51759436,178.63,178.62,9.57945464]
[1754924731480,39.78,178.65,178.62,9.70945464]
[1754924731690,3.73892514,178.64,178.59,5.78933673]
[1754924731853,140.0,178.62,178.6,9.57945464]
[1754924732052,39.78,178.61,178.59,0.06]
[1754924732253,40.44,178.61,178.59,0.06]
[1754924732454,5.59910414,178.6,178.59,0.06]
[1754924733750,45.3788904,178.61,178.59,0.06]
[1754924733986,39.78,178.61,178.59,9.63945464]
[1754924734274,39.78,178.62,178.6,0.13]
[1754924734487,39.78,178.63,178.61,9.57945464]
[1754924734648,39.78,178.63,178.62,9.57945464]
[1754924734849,39.78,178.64,178.62,9.57945464]
[1754924735055,39.78,178.64,178.63,9.57945464]
[1754924735270,43.523541,178.64,178.63,9.57945464]
[1754924735488,3.743541,178.64,178.63,9.57945464]
[1754924735659,39.78,178.65,178.63,9.57945464]
[1754924735861,3.743541,178.64,178.63,9.57945464]
[1754924736302,3.743541,178.64,178.62,9.57945464]
[1754924737778,40.42,178.63,178.6,9.57945464]
[1754924737951,33.25030656,178.62,178.59,0.06]
[1754924738151,47.66441237,178.61,178.59,0.06]
[1754924738454,3.743541,178.6,178.59,0.06]
[1754924739779,10.00264514,178.6,178.59,0.06]
[1754924739978,3.743541,178.6,178.59,0.06]
[1754924741674,9.34264514,178.6,178.59,0.06]
[1754924742075,31.09789856,178.6,178.59,0.06]
[1754924742974,35.25493251,178.6,178.59,0.06]
[1754924743887,15.10621557,178.59,178.57,0.06]
[1754924744101,68.75582837,178.58,178.57,0.06]
[1754924744299,69.41582837,178.58,178.56,0.06]
[1754924744476,14.5496128,178.57,178.56,0.06]
[1754924744795,14.5468885,178.57,178.56,0.06]
[1754924745165,14.54634029,178.57,178.56,0.06]
[1754924745370,29.65255586,178.57,178.56,0.06]
[1754924745770,35.25260066,178.57,178.56,0.06]
[1754924747509,37.49594866,178.57,178.56,0.06]
[1754924748306,31.50691081,178.57,178.56,0.06]
[1754924748606,37.49594866,178.57,178.56,0.06]
[1754924749105,183.19594866,178.57,178.56,0.06]
[1754924749290,183.19156483,178.57,178.56,1e-08]
[1754924749498,215.26528082,178.57,178.56,1e-08]
[1754924750085,241.26528082,178.57,178.56,1e-08]
[1754924750290,278.97156483,178.57,178.56,1e-08]
[1754924750599,272.98252698,178.57,178.56,1e-08]
[1754924750784,248.97156483,178.57,178.56,1e-08]
[1754924751669,248.97156483,178.57,178.55,0.06]
[1754924751670,160.80621557,178.56,178.51,0.06]
[1754924751878,15.10621557,178.51,178.43,0.25]
[1754924752080,5.98903785,178.46,178.41,6.33903785]
[1754924752309,45.76903785,178.45,178.41,0.35]
[1754924752601,15.10621557,178.49,178.43,5.98903785]
[1754924752805,5.98903785,178.47,178.42,5.98903785]
[1754924752983,5.98903785,178.47,178.41,0.35]
[1754924752984,45.76903785,178.46,178.41,6.33903785]
[1754924753184,39.78,178.46,178.42,5.98903785]
[1754924753399,39.78,178.46,178.43,0.25]
[1754924753697,45.38353906,178.46,178.41,0.35]
[1754924753900,45.38353906,178.46,178.42,5.98903785]
[1754924754074,51.37257691,178.46,178.41,6.08903785]
[1754924754277,46.04353906,178.46,178.41,0.1]
[1754924754490,54.88621557,178.45,178.41,0.1]
[1754924754694,54.88621557,178.45,178.42,5.98903785]
[1754924754882,54.88621557,178.45,178.41,6.08903785]
[1754924755692,60.49013047,178.45,178.41,6.08903785]
[1754924755886,39.78,178.45,178.42,6.23903785]
[1754924756190,39.78,178.44,178.42,6.23903785]
[1754924756577,39.78,178.44,178.42,5.98903785]
[1754924756775,40.44,178.44,178.41,6.08903785]
[1754924756977,0.66,178.43,178.41,6.08903785]
[1754924757211,39.78,178.44,178.41,0.1]
[1754924757212,40.44,178.44,178.41,0.1]
[1754924757506,40.44,178.44,178.41,6.08903785]
[1754924757678,46.04439503,178.44,178.41,0.1]
[1754924757875,46.04439503,178.44,178.41,6.08903785]
[1754924758390,46.04439503,178.44,178.41,0.1]
[1754924758691,0.71,178.43,178.41,0.1]
[1754924758904,45.38439503,178.44,178.41,0.1]
[1754924758905,39.78,178.42,178.41,0.1]
[1754924759283,40.49,178.42,178.41,0.1]
[1754924759498,46.47903785,178.42,178.41,0.1]
[1754924759678,70.90921183,178.42,178.41,0.1]
[1754924760304,39.78,178.42,178.41,6.08903785]
[1754924760507,15.10621557,178.46,178.41,11.94410483]
[1754924760719,5.6032404,178.47,178.45,5.98903785]
[1754924761010,15.10621557,178.44,178.41,0.1]
[1754924761201,39.78,178.43,178.41,6.08903785]
[1754924761395,39.78,178.43,178.41,0.1]
[1754924761597,21.80525342,178.42,178.41,0.1]
[1754924761783,21.4209684,178.42,178.41,0.1]
[1754924762178,27.41000625,178.42,178.41,0.1]
[1754924762805,15.10621557,178.41,178.35,27.42237286]
[1754924762979,21.09525342,178.36,178.35,27.42237286]
[1754924763177,61.58525342,178.36,178.35,27.42237286]
[1754924763686,15.10621557,178.34,178.28,5.98903785]
[1754924763902,45.76903785,178.33,178.28,5.98903785]
[1754924764083,46.47903785,178.33,178.28,5.98903785]
[1754924764281,39.78,178.33,178.26,5.85971794]
[1754924764489,39.78,178.32,178.28,9.61288358]
[1754924764693,39.78,178.32,178.29,9.61288358]
[1754924765209,39.78,178.32,178.28,9.61288358]
[1754924765210,140.71,178.31,178.28,9.61288358]
[1754924765506,39.8,178.3,178.28,9.61288358]
[1754924765701,39.8,178.3,178.29,9.61288358]
[1754924766110,39.8,178.3,178.26,5.85967318]
[1754924766410,40.51,178.3,178.27,9.61288358]
[1754924766916,15.10621557,178.31,178.24,5.61036628]
[1754924767099,39.8,178.3,178.27,0.25]
[1754924767297,39.8,178.3,178.25,26.0]
[1754924767498,40.51,178.3,178.28,9.61288358]
[1754924767717,39.8,178.3,178.28,9.61288358]
[1754924768017,39.8,178.3,178.29,9.61288358]
[1754924768396,39.8,178.3,178.25,31.85986142]
[1754924768619,39.8,178.3,178.29,9.61288358]
[1754924768828,40.53,178.3,178.28,9.61288358]
[1754924768993,39.82,178.3,178.29,9.61288358]
[1754924769328,40.53,178.3,178.28,9.61288358]
[1754924769489,40.53,178.3,178.29,9.61288358]
[1754924769694,39.82,178.3,178.29,9.61288358]
[1754924770212,0.71,178.35,178.29,9.61288358]
[1754924770416,54.92621557,178.34,178.31,9.61288358]